[Event "Early-Titled-Tuesday-Blitz-October-24-2023"]
[Site "Chess.com"]
[Date "2023.10.24"]
[Round "4"]
[White "adotand"]
[Black "MagnusCarlsen"]
[Result "0-1"]
[WhiteElo "2851"]
[BlackElo "3268"]
[TimeControl "180+1"]
[EndTime "8:38:48 PDT"]
[Termination "MagnusCarlsen won on time"]

1. d4 {[%clk 0:03:00.9]} 1... c6 {[%clk 0:02:59.4]} 2. c4 {[%clk 0:03:00.5]}
2... Na6 {[%clk 0:02:59.9]} 3. Nc3 {[%clk 0:03:00.2]} 3... g6 {[%clk 0:02:55]}
4. h4 {[%clk 0:02:59.9]} 4... Nf6 {[%clk 0:02:51.5]} 5. Bf4 {[%clk 0:02:59.2]}
5... b5 {[%clk 0:02:44.5]} 6. e3 {[%clk 0:02:50.9]} 6... bxc4 {[%clk 0:02:43.9]}
7. Bxc4 {[%clk 0:02:50.2]} 7... Nc7 {[%clk 0:02:37.5]} 8. Nf3 {[%clk 0:02:48.9]}
8... Bg7 {[%clk 0:02:36.9]} 9. Ne5 {[%clk 0:02:27.9]} 9... Ncd5 {[%clk
0:02:34.6]} 10. h5 {[%clk 0:02:20.5]} 10... O-O {[%clk 0:02:33.5]} 11. h6 {[%clk
0:02:15.6]} 11... Bh8 {[%clk 0:02:33.1]} 12. O-O {[%clk 0:02:16.1]} 12... Nxf4
{[%clk 0:02:17.8]} 13. exf4 {[%clk 0:02:15.9]} 13... Qb6 {[%clk 0:02:16.3]} 14.
Bb3 {[%clk 0:02:03.1]} 14... d6 {[%clk 0:02:16.2]} 15. Nc4 {[%clk 0:01:57]}
15... Qc7 {[%clk 0:02:16.4]} 16. Ne3 {[%clk 0:01:56.7]} 16... d5 {[%clk
0:02:14.9]} 17. Qf3 {[%clk 0:01:54.4]} 17... Qd6 {[%clk 0:02:09.5]} 18. Rfe1
{[%clk 0:01:51.4]} 18... Re8 {[%clk 0:02:01.3]} 19. f5 {[%clk 0:01:48.9]} 19...
Rb8 {[%clk 0:01:54]} 20. Rac1 {[%clk 0:01:41.1]} 20... Rb4 {[%clk 0:01:53.7]}
21. Rcd1 {[%clk 0:01:35.6]} 21... a5 {[%clk 0:01:53]} 22. g4 {[%clk 0:01:24.8]}
22... g5 {[%clk 0:01:51.8]} 23. Nc2 {[%clk 0:01:17.2]} 23... Rb7 {[%clk
0:01:48.4]} 24. Re2 {[%clk 0:01:17.6]} 24... Kf8 {[%clk 0:01:41.1]} 25. Rde1
{[%clk 0:01:17]} 25... Ng8 {[%clk 0:01:40.9]} 26. Kg2 {[%clk 0:01:08.7]} 26...
Nxh6 {[%clk 0:01:37.3]} 27. Qh3 {[%clk 0:01:04.2]} 27... Bg7 {[%clk 0:01:34.2]}
28. Re5 {[%clk 0:00:54.1]} 28... Ng8 {[%clk 0:01:30.4]} 29. Qxh7 {[%clk
0:00:52.1]} 29... Qh6 {[%clk 0:01:29.2]} 30. Qxh6 {[%clk 0:00:46.5]} 30... Nxh6
{[%clk 0:01:30.1]} 31. f3 {[%clk 0:00:43.9]} 31... e6 {[%clk 0:01:29.2]} 32.
R5e2 {[%clk 0:00:38.3]} 32... Rbe7 {[%clk 0:01:27.1]} 33. fxe6 {[%clk
0:00:37.8]} 33... fxe6 {[%clk 0:01:25.4]} 34. Ba4 {[%clk 0:00:36.7]} 34... Bd7
{[%clk 0:01:22.8]} 35. Rd2 {[%clk 0:00:30.3]} 35... Nf7 {[%clk 0:01:22.5]} 36.
b4 {[%clk 0:00:30.8]} 36... Nd6 {[%clk 0:01:20.9]} 37. bxa5 {[%clk 0:00:28.5]}
37... Nc4 {[%clk 0:01:18.1]} 38. Rde2 {[%clk 0:00:28.9]} 38... Ra8 {[%clk
0:01:12.3]} 39. Bb3 {[%clk 0:00:25.9]} 39... Nd6 {[%clk 0:01:08.6]} 40. Na4
{[%clk 0:00:25.7]} 40... Rxa5 {[%clk 0:01:04.8]} 41. Nc5 {[%clk 0:00:26.3]}
41... Rxc5 {[%clk 0:00:49.2]} 42. dxc5 {[%clk 0:00:25.8]} 42... Nb7 {[%clk
0:00:49.9]} 43. Nb4 {[%clk 0:00:22.7]} 43... Bc3 {[%clk 0:00:32.4]} 44. Nd3
{[%clk 0:00:23]} 44... Bxe1 {[%clk 0:00:33]} 45. Rxe1 {[%clk 0:00:23.9]} 45...
Be8 {[%clk 0:00:32.1]} 46. Kg3 {[%clk 0:00:22.2]} 46... Kg7 {[%clk 0:00:31.4]}
47. f4 {[%clk 0:00:20.8]} 47... Kf6 {[%clk 0:00:29.4]} 48. fxg5+ {[%clk
0:00:20.2]} 48... Kxg5 {[%clk 0:00:30.3]} 49. Re5+ {[%clk 0:00:20.8]} 49... Kf6
{[%clk 0:00:30.6]} 50. g5+ {[%clk 0:00:21.2]} 50... Kg7 {[%clk 0:00:30.4]} 51.
a4 {[%clk 0:00:18.3]} 51... Bg6 {[%clk 0:00:30.4]} 52. Nf4 {[%clk 0:00:18.7]}
52... Nxc5 {[%clk 0:00:30.3]} 53. Nxg6 {[%clk 0:00:12.2]} 53... Kxg6 {[%clk
0:00:30.3]} 54. Bc2+ {[%clk 0:00:12.9]} 54... Kg7 {[%clk 0:00:29.2]} 55. Re1
{[%clk 0:00:11.5]} 55... e5 {[%clk 0:00:28.3]} 56. Bf5 {[%clk 0:00:11.9]} 56...
e4 {[%clk 0:00:27.5]} 57. Rh1 {[%clk 0:00:12.1]} 57... Re5 {[%clk 0:00:22.7]}
58. Kg4 {[%clk 0:00:08.3]} 58... e3 {[%clk 0:00:21.9]} 59. a5 {[%clk 0:00:06.5]}
59... d4 {[%clk 0:00:21]} 60. g6 {[%clk 0:00:03.1]} 60... e2 {[%clk 0:00:20.4]}
61. Rh7+ {[%clk 0:00:03.6]} 61... Kg8 {[%clk 0:00:20.5]} 62. Rc7 {[%clk
0:00:01.2]} 62... e1=Q {[%clk 0:00:20.1]} 63. Rc8+ {[%clk 0:00:01.8]} 63... Re8
{[%clk 0:00:20.7]} 0-1

[Event "Early-Titled-Tuesday-Blitz-October-24-2023"]
[Site "Chess.com"]
[Date "2023.10.24"]
[Round "4"]
[White "JiaHaoxiang"]
[Black "Chessmissile07"]
[Result "1-0"]
[WhiteElo "2596"]
[BlackElo "2899"]
[TimeControl "180+1"]
[EndTime "8:38:49 PDT"]
[Termination "JiaHaoxiang won by checkmate"]

1. d4 {[%clk 0:03:00.9]} 1... d5 {[%clk 0:02:58.2]} 2. Bf4 {[%clk 0:03:00.1]}
2... Nf6 {[%clk 0:02:56.1]} 3. Nf3 {[%clk 0:02:59.7]} 3... c5 {[%clk 0:02:55.7]}
4. dxc5 {[%clk 0:02:59.5]} 4... Qa5+ {[%clk 0:02:50.4]} 5. Nbd2 {[%clk
0:02:54.5]} 5... e6 {[%clk 0:02:38]} 6. e3 {[%clk 0:02:53.2]} 6... Bxc5 {[%clk
0:02:37.2]} 7. c4 {[%clk 0:02:47.6]} 7... O-O {[%clk 0:02:33.7]} 8. a3 {[%clk
0:02:40.8]} 8... dxc4 {[%clk 0:02:24]} 9. Bxc4 {[%clk 0:02:40.2]} 9... Be7
{[%clk 0:02:17.9]} 10. O-O {[%clk 0:02:38.6]} 10... Nc6 {[%clk 0:02:14.7]} 11.
b4 {[%clk 0:02:29]} 11... Qh5 {[%clk 0:02:14.9]} 12. h3 {[%clk 0:02:28.8]} 12...
Nd5 {[%clk 0:02:14]} 13. Bg3 {[%clk 0:02:21.2]} 13... Rd8 {[%clk 0:02:07.4]} 14.
Qc2 {[%clk 0:02:14.7]} 14... Qg6 {[%clk 0:02:03]} 15. Bd3 {[%clk 0:02:08]} 15...
Qh6 {[%clk 0:01:55.9]} 16. b5 {[%clk 0:01:46.9]} 16... Ncb4 {[%clk 0:01:38.9]}
17. axb4 {[%clk 0:01:46.2]} 17... Nxb4 {[%clk 0:01:39.8]} 18. Bxh7+ {[%clk
0:01:17.9]} 18... Qxh7 {[%clk 0:01:40.7]} 19. Qxh7+ {[%clk 0:01:17.5]} 19...
Kxh7 {[%clk 0:01:41.6]} 20. b6 {[%clk 0:01:03.2]} 20... a6 {[%clk 0:01:22.4]}
21. Rfd1 {[%clk 0:01:02.2]} 21... Bd7 {[%clk 0:01:07.4]} 22. Bc7 {[%clk
0:00:57.9]} 22... Re8 {[%clk 0:01:04.9]} 23. Ne5 {[%clk 0:00:57.4]} 23... Bb5
{[%clk 0:00:57.1]} 24. Nxf7 {[%clk 0:00:55.6]} 24... Nd5 {[%clk 0:00:52.6]} 25.
Nf3 {[%clk 0:00:52.8]} 25... Nxc7 {[%clk 0:00:45.6]} 26. bxc7 {[%clk 0:00:52.8]}
26... Rec8 {[%clk 0:00:45.7]} 27. N7g5+ {[%clk 0:00:37.3]} 27... Bxg5 {[%clk
0:00:39.2]} 28. Nxg5+ {[%clk 0:00:38.2]} 28... Kg6 {[%clk 0:00:39.9]} 29. Nxe6
{[%clk 0:00:38.9]} 29... Kf6 {[%clk 0:00:39.6]} 30. Rd6 {[%clk 0:00:38.8]} 30...
Ke7 {[%clk 0:00:39.8]} 31. Rad1 {[%clk 0:00:39.1]} 31... a5 {[%clk 0:00:37.8]}
32. Rb6 {[%clk 0:00:32]} 32... Bc6 {[%clk 0:00:38.1]} 33. Nxg7 {[%clk
0:00:20.1]} 33... Rxc7 {[%clk 0:00:38]} 34. Nf5+ {[%clk 0:00:20.5]} 34... Kf8
{[%clk 0:00:37.9]} 35. Nd4 {[%clk 0:00:19.8]} 35... a4 {[%clk 0:00:37.9]} 36.
Ne6+ {[%clk 0:00:19.9]} 36... Ke7 {[%clk 0:00:36.8]} 37. Nxc7 {[%clk 0:00:20.8]}
37... Ra5 {[%clk 0:00:37]} 38. e4 {[%clk 0:00:16.7]} 38... a3 {[%clk 0:00:36.7]}
39. Nd5+ {[%clk 0:00:17]} 39... Kd6 {[%clk 0:00:34.7]} 40. Ne3+ {[%clk
0:00:12.4]} 40... Kc5 {[%clk 0:00:34.9]} 41. Rb3 {[%clk 0:00:13.1]} 41... b5
{[%clk 0:00:34.6]} 42. Rc1+ {[%clk 0:00:13]} 42... Kd6 {[%clk 0:00:34.9]} 43.
Nf5+ {[%clk 0:00:12.3]} 43... Kd7 {[%clk 0:00:31.5]} 44. Rd3+ {[%clk 0:00:12.3]}
44... Ke8 {[%clk 0:00:27.4]} 45. Ra1 {[%clk 0:00:09.5]} 45... b4 {[%clk
0:00:26.1]} 46. Rb3 {[%clk 0:00:09.6]} 46... Ra4 {[%clk 0:00:23.1]} 47. Nd4
{[%clk 0:00:09.9]} 47... Bd7 {[%clk 0:00:21.2]} 48. Nc2 {[%clk 0:00:09.7]} 48...
Ke7 {[%clk 0:00:18.4]} 49. Rxb4 {[%clk 0:00:10]} 49... Ra6 {[%clk 0:00:18.9]}
50. Rb3 {[%clk 0:00:09.8]} 50... Rc6 {[%clk 0:00:19.8]} 51. Nxa3 {[%clk
0:00:09.1]} 51... Be6 {[%clk 0:00:19.7]} 52. Rg3 {[%clk 0:00:09]} 52... Kf6
{[%clk 0:00:19.8]} 53. Nb5 {[%clk 0:00:09.5]} 53... Rc4 {[%clk 0:00:19.2]} 54.
f3 {[%clk 0:00:08.8]} 54... Rb4 {[%clk 0:00:19.6]} 55. Nd6 {[%clk 0:00:08.4]}
55... Ke5 {[%clk 0:00:20.5]} 56. Nf5 {[%clk 0:00:08.6]} 56... Kf4 {[%clk
0:00:20.8]} 57. Rg4+ {[%clk 0:00:08.9]} 57... Ke5 {[%clk 0:00:21.4]} 58. Rg5
{[%clk 0:00:09.6]} 58... Kf4 {[%clk 0:00:21.6]} 59. h4 {[%clk 0:00:10.4]} 59...
Rb2 {[%clk 0:00:21.1]} 60. Ng3 {[%clk 0:00:09.8]} 60... Ke3 {[%clk 0:00:20.8]}
61. Nf1+ {[%clk 0:00:10]} 61... Kf4 {[%clk 0:00:20.8]} 62. Ra3 {[%clk
0:00:09.3]} 62... Bb3 {[%clk 0:00:13.3]} 63. Rf5# {[%clk 0:00:09.5]} 1-0

[Event "Early-Titled-Tuesday-Blitz-October-24-2023"]
[Site "Chess.com"]
[Date "2023.10.24"]
[Round "4"]
[White "Tssunami"]
[Black "Carow-Kann"]
[Result "0-1"]
[WhiteElo "2428"]
[BlackElo "2660"]
[TimeControl "180+1"]
[EndTime "8:38:57 PDT"]
[Termination "Carow-Kann won by checkmate"]

1. d4 {[%clk 0:03:00.9]} 1... Nf6 {[%clk 0:03:00]} 2. c4 {[%clk 0:03:00.8]} 2...
g6 {[%clk 0:02:59.7]} 3. Nc3 {[%clk 0:03:00]} 3... d5 {[%clk 0:03:00.1]} 4. cxd5
{[%clk 0:03:00.3]} 4... Nxd5 {[%clk 0:03:01]} 5. e4 {[%clk 0:03:00.8]} 5... Nxc3
{[%clk 0:03:01]} 6. bxc3 {[%clk 0:03:01.7]} 6... Bg7 {[%clk 0:03:01.7]} 7. Nf3
{[%clk 0:03:01.3]} 7... c5 {[%clk 0:03:02]} 8. Bb5+ {[%clk 0:03:01.6]} 8... Bd7
{[%clk 0:02:58.8]} 9. Rb1 {[%clk 0:03:01.5]} 9... O-O {[%clk 0:02:57.9]} 10. O-O
{[%clk 0:03:01.5]} 10... b6 {[%clk 0:02:53.2]} 11. Be3 {[%clk 0:02:50.6]} 11...
Bxb5 {[%clk 0:02:52.5]} 12. Rxb5 {[%clk 0:02:50.1]} 12... Qd7 {[%clk 0:02:51.9]}
13. Rb1 {[%clk 0:02:46.6]} 13... cxd4 {[%clk 0:02:49.8]} 14. cxd4 {[%clk
0:02:46.1]} 14... Qe6 {[%clk 0:02:47.5]} 15. Qc2 {[%clk 0:02:18.2]} 15... Rc8
{[%clk 0:02:46.8]} 16. Qd3 {[%clk 0:02:02.9]} 16... Qxa2 {[%clk 0:02:41.5]} 17.
e5 {[%clk 0:01:51.7]} 17... Qd5 {[%clk 0:02:30.1]} 18. Rb5 {[%clk 0:01:50.1]}
18... Qc4 {[%clk 0:02:26.2]} 19. Qb1 {[%clk 0:01:14.2]} 19... Nd7 {[%clk
0:02:11.9]} 20. Rc1 {[%clk 0:01:11.4]} 20... Qa4 {[%clk 0:02:09]} 21. Rxc8+
{[%clk 0:00:59.9]} 21... Rxc8 {[%clk 0:02:09.9]} 22. e6 {[%clk 0:01:00]} 22...
fxe6 {[%clk 0:02:05.8]} 23. Ng5 {[%clk 0:00:58.4]} 23... Qc2 {[%clk 0:01:55]}
24. Qf1 {[%clk 0:00:45.9]} 24... Qc4 {[%clk 0:01:43.9]} 25. Qb1 {[%clk
0:00:41.3]} 25... Nf8 {[%clk 0:01:34.3]} 26. h4 {[%clk 0:00:39]} 26... h6 {[%clk
0:01:27.2]} 27. Nh3 {[%clk 0:00:37]} 27... Qc2 {[%clk 0:01:18.1]} 28. Qe1 {[%clk
0:00:27.4]} 28... Rc3 {[%clk 0:01:15.6]} 29. Nf4 {[%clk 0:00:25.2]} 29... Rb3
{[%clk 0:01:08.9]} 30. Rxb3 {[%clk 0:00:22.6]} 30... Qxb3 {[%clk 0:01:09.8]} 31.
Qc1 {[%clk 0:00:21.7]} 31... Bf6 {[%clk 0:01:05]} 32. h5 {[%clk 0:00:20.7]}
32... g5 {[%clk 0:01:04]} 33. Ng6 {[%clk 0:00:20.6]} 33... Nxg6 {[%clk
0:01:00.4]} 34. hxg6 {[%clk 0:00:21.5]} 34... Kg7 {[%clk 0:01:00.7]} 35. Qc8
{[%clk 0:00:21.2]} 35... e5 {[%clk 0:00:56.8]} 36. dxe5 {[%clk 0:00:18.9]} 36...
Bxe5 {[%clk 0:00:57.7]} 37. g3 {[%clk 0:00:19.1]} 37... Qb1+ {[%clk 0:00:54.7]}
38. Kg2 {[%clk 0:00:19.4]} 38... Qxg6 {[%clk 0:00:51.1]} 39. Qd7 {[%clk
0:00:18.5]} 39... Qd6 {[%clk 0:00:48.8]} 40. Qxa7 {[%clk 0:00:17.2]} 40... b5
{[%clk 0:00:43.8]} 41. Qb7 {[%clk 0:00:16.3]} 41... b4 {[%clk 0:00:41.7]} 42.
Kh2 {[%clk 0:00:16.1]} 42... Bc3 {[%clk 0:00:41.3]} 43. Qb5 {[%clk 0:00:15.3]}
43... Qe6 {[%clk 0:00:36]} 44. Kg2 {[%clk 0:00:15.4]} 44... b3 {[%clk 0:00:34]}
45. Qd3 {[%clk 0:00:15.5]} 45... Qc6+ {[%clk 0:00:31.2]} 46. Kh2 {[%clk
0:00:10.8]} 46... b2 {[%clk 0:00:31.1]} 47. Bd4+ {[%clk 0:00:11]} 47... Bxd4
{[%clk 0:00:31.2]} 48. Qxd4+ {[%clk 0:00:11.2]} 48... Qf6 {[%clk 0:00:31.9]} 49.
Qb4 {[%clk 0:00:11.6]} 49... Qxf2+ {[%clk 0:00:30.3]} 50. Kh3 {[%clk 0:00:12.2]}
50... Qf6 {[%clk 0:00:27.9]} 51. Kh2 {[%clk 0:00:11.7]} 51... Kf7 {[%clk
0:00:26.1]} 52. Qb3+ {[%clk 0:00:11.7]} 52... Ke8 {[%clk 0:00:25.4]} 53. Qb8+
{[%clk 0:00:11.7]} 53... Kd7 {[%clk 0:00:25.8]} 54. Qb5+ {[%clk 0:00:11.8]}
54... Kd6 {[%clk 0:00:24.4]} 55. Kh3 {[%clk 0:00:11.6]} 55... h5 {[%clk
0:00:20.5]} 56. Kh2 {[%clk 0:00:11.4]} 56... Qe5 {[%clk 0:00:19.3]} 57. Qb6+
{[%clk 0:00:11.1]} 57... Kd7 {[%clk 0:00:19.2]} 58. Qb7+ {[%clk 0:00:11.4]}
58... Ke6 {[%clk 0:00:19]} 59. Qb3+ {[%clk 0:00:11.5]} 59... Kf6 {[%clk
0:00:17.2]} 60. Qb6+ {[%clk 0:00:11.8]} 60... Kg7 {[%clk 0:00:15.9]} 61. Qb7
{[%clk 0:00:12]} 61... h4 {[%clk 0:00:15.3]} 62. Kh1 {[%clk 0:00:11.1]} 62...
Qe1+ {[%clk 0:00:15.5]} 63. Kh2 {[%clk 0:00:11.3]} 63... b1=Q {[%clk 0:00:14.7]}
64. g4 {[%clk 0:00:06.3]} 64... Qg3# {[%clk 0:00:13.8]} 0-1

[Event "Early-Titled-Tuesday-Blitz-October-24-2023"]
[Site "Chess.com"]
[Date "2023.10.24"]
[Round "4"]
[White "NMJeevanK"]
[Black "Alina_Gumerovna"]
[Result "1-0"]
[WhiteElo "2589"]
[BlackElo "2100"]
[TimeControl "180+1"]
[EndTime "8:38:57 PDT"]
[Termination "NMJeevanK won by resignation"]

1. e4 {[%clk 0:02:59.5]} 1... e6 {[%clk 0:02:59.5]} 2. d4 {[%clk 0:02:55.8]}
2... d5 {[%clk 0:02:54.3]} 3. e5 {[%clk 0:02:56.1]} 3... c5 {[%clk 0:02:53.7]}
4. c3 {[%clk 0:02:56.8]} 4... Nc6 {[%clk 0:02:53.4]} 5. Nf3 {[%clk 0:02:54.4]}
5... Qb6 {[%clk 0:02:52.6]} 6. Bd3 {[%clk 0:02:54.1]} 6... cxd4 {[%clk
0:02:50.5]} 7. cxd4 {[%clk 0:02:55]} 7... Bd7 {[%clk 0:02:50.9]} 8. O-O {[%clk
0:02:52.7]} 8... Nxd4 {[%clk 0:02:49.2]} 9. Nxd4 {[%clk 0:02:53.1]} 9... Qxd4
{[%clk 0:02:49.5]} 10. Nc3 {[%clk 0:02:54]} 10... Qxe5 {[%clk 0:02:45.3]} 11.
Re1 {[%clk 0:02:52]} 11... Qd6 {[%clk 0:02:23.8]} 12. Qf3 {[%clk 0:02:50.9]}
12... Nf6 {[%clk 0:02:21.5]} 13. Bf4 {[%clk 0:02:49.7]} 13... Qb6 {[%clk
0:02:08.5]} 14. a4 {[%clk 0:02:43.9]} 14... Be7 {[%clk 0:01:58.2]} 15. Be5
{[%clk 0:02:30.8]} 15... O-O {[%clk 0:01:21.9]} 16. Qh3 {[%clk 0:02:25.1]} 16...
h6 {[%clk 0:01:21.5]} 17. Re3 {[%clk 0:02:14.4]} 17... Qxb2 {[%clk 0:00:21.1]}
18. Ne4 {[%clk 0:01:48.8]} 18... Qxa1+ {[%clk 0:00:20.3]} 19. Bxa1 {[%clk
0:01:48.4]} 19... dxe4 {[%clk 0:00:20.7]} 20. Bxf6 {[%clk 0:01:37.4]} 20... Bxf6
{[%clk 0:00:19.3]} 21. Bxe4 {[%clk 0:01:38]} 21... Rac8 {[%clk 0:00:18.4]} 22.
g3 {[%clk 0:01:33.7]} 22... Rc1+ {[%clk 0:00:16]} 23. Kg2 {[%clk 0:01:33.5]}
23... Bc6 {[%clk 0:00:16.3]} 24. Qg4 {[%clk 0:01:31.2]} 24... Bxe4+ {[%clk
0:00:15.1]} 25. Qxe4 {[%clk 0:01:32.1]} 25... Rc7 {[%clk 0:00:11.3]} 26. a5
{[%clk 0:01:30.7]} 26... b6 {[%clk 0:00:09.5]} 27. a6 {[%clk 0:01:27.3]} 27...
Rd8 {[%clk 0:00:08.8]} 28. Qf3 {[%clk 0:01:21.4]} 28... Rd5 {[%clk 0:00:08.5]}
29. h4 {[%clk 0:01:13.4]} 29... Rc2 {[%clk 0:00:07.1]} 30. Rd3 {[%clk
0:01:00.8]} 30... Rf5 {[%clk 0:00:04.1]} 31. Qa8+ {[%clk 0:00:58.4]} 31... Kh7
{[%clk 0:00:04.2]} 32. Rf3 {[%clk 0:00:59]} 32... Rxf3 {[%clk 0:00:02.8]} 33.
Kxf3 {[%clk 0:00:59.4]} 33... Rc3+ {[%clk 0:00:03.4]} 34. Kg2 {[%clk 0:00:58.6]}
34... Rc7 {[%clk 0:00:03.8]} 35. f4 {[%clk 0:00:57.4]} 35... Re7 {[%clk
0:00:04.7]} 36. Kf3 {[%clk 0:00:56.5]} 36... e5 {[%clk 0:00:04.5]} 37. Qe4+
{[%clk 0:00:32.9]} 37... g6 {[%clk 0:00:04.1]} 38. f5 {[%clk 0:00:30.9]} 38...
g5 {[%clk 0:00:03.6]} 39. hxg5 {[%clk 0:00:29.7]} 39... hxg5 {[%clk 0:00:04.5]}
40. Qc6 {[%clk 0:00:27.5]} 40... Kg7 {[%clk 0:00:04.5]} 41. Ke4 {[%clk
0:00:26.6]} 41... g4 {[%clk 0:00:01.1]} 42. Qb7 {[%clk 0:00:24.5]} 42... Bg5
{[%clk 0:00:01.3]} 43. Qc8 {[%clk 0:00:20.4]} 43... Bf6 {[%clk 0:00:02.2]} 44.
Qc2 {[%clk 0:00:19.9]} 44... Bg5 {[%clk 0:00:01.9]} 45. Qe2 {[%clk 0:00:20.5]}
45... Bf6 {[%clk 0:00:02.1]} 46. Qxg4+ {[%clk 0:00:20.8]} 46... Kf8 {[%clk
0:00:03]} 47. Qd1 {[%clk 0:00:20.4]} 47... Kg7 {[%clk 0:00:03.4]} 48. Qd6 {[%clk
0:00:20]} 48... Bg5 {[%clk 0:00:02.4]} 49. g4 {[%clk 0:00:17.8]} 49... Bf6
{[%clk 0:00:02.7]} 50. Qc6 {[%clk 0:00:16.1]} 50... Bg5 {[%clk 0:00:02.4]} 51.
Qb7 {[%clk 0:00:16.1]} 51... Bf6 {[%clk 0:00:02.7]} 52. Qc8 {[%clk 0:00:16.3]}
52... Bg5 {[%clk 0:00:02.7]} 53. Qc2 {[%clk 0:00:15.1]} 53... Bf6 {[%clk
0:00:02.8]} 54. Qd2 {[%clk 0:00:15]} 54... Rc7 {[%clk 0:00:02.4]} 55. g5 {[%clk
0:00:14.2]} 55... Rc4+ {[%clk 0:00:02.7]} 56. Kf3 {[%clk 0:00:10]} 56... Rf4+
{[%clk 0:00:03]} 57. Kg3 {[%clk 0:00:07.5]} 57... Bxg5 {[%clk 0:00:02.9]} 58.
Qd5 {[%clk 0:00:07.4]} 58... Rxf5 {[%clk 0:00:03]} 59. Kg4 {[%clk 0:00:05.8]}
59... Kg6 {[%clk 0:00:01.8]} 60. Qe4 {[%clk 0:00:06.1]} 60... Bf6 {[%clk
0:00:01.1]} 61. Qxf5+ {[%clk 0:00:07]} 61... Kg7 {[%clk 0:00:01.5]} 62. Qe4
{[%clk 0:00:07.5]} 62... Kf8 {[%clk 0:00:01.5]} 63. Kf5 {[%clk 0:00:08.4]} 63...
Ke7 {[%clk 0:00:02]} 64. Qb7+ {[%clk 0:00:09.3]} 1-0

[Event "Early-Titled-Tuesday-Blitz-October-24-2023"]
[Site "Chess.com"]
[Date "2023.10.24"]
[Round "4"]
[White "ImBushchess"]
[Black "Cecile-Haussernot"]
[Result "1-0"]
[WhiteElo "2254"]
[BlackElo "2497"]
[TimeControl "180+1"]
[EndTime "8:39:01 PDT"]
[Termination "ImBushchess won by checkmate"]

1. Nf3 {[%clk 0:03:00.9]} 1... Nf6 {[%clk 0:02:58.8]} 2. g3 {[%clk 0:03:01.8]}
2... d5 {[%clk 0:02:58.3]} 3. Bg2 {[%clk 0:03:00.8]} 3... c5 {[%clk 0:02:55.1]}
4. O-O {[%clk 0:03:01.7]} 4... Nc6 {[%clk 0:02:55.7]} 5. d3 {[%clk 0:03:02.6]}
5... e5 {[%clk 0:02:56]} 6. Nbd2 {[%clk 0:03:02.1]} 6... Bd6 {[%clk 0:02:56.1]}
7. e4 {[%clk 0:03:01.5]} 7... O-O {[%clk 0:02:55.2]} 8. exd5 {[%clk 0:02:59.9]}
8... Nxd5 {[%clk 0:02:55.1]} 9. Nc4 {[%clk 0:03:00.4]} 9... Bc7 {[%clk
0:02:54.3]} 10. a4 {[%clk 0:03:00]} 10... a6 {[%clk 0:02:53.4]} 11. Bd2 {[%clk
0:02:55.6]} 11... Rb8 {[%clk 0:02:53.4]} 12. Re1 {[%clk 0:02:53.4]} 12... Re8
{[%clk 0:02:52.4]} 13. a5 {[%clk 0:02:51.8]} 13... Bg4 {[%clk 0:02:44]} 14. h3
{[%clk 0:02:49.3]} 14... Bh5 {[%clk 0:02:44.6]} 15. Qc1 {[%clk 0:02:36.1]} 15...
Qd7 {[%clk 0:02:39.5]} 16. Ng5 {[%clk 0:02:32]} 16... f5 {[%clk 0:02:35.7]} 17.
Be3 {[%clk 0:02:08.4]} 17... h6 {[%clk 0:02:10.6]} 18. Nf3 {[%clk 0:02:06.8]}
18... e4 {[%clk 0:02:08.2]} 19. Nfd2 {[%clk 0:01:56]} 19... exd3 {[%clk
0:02:05.1]} 20. cxd3 {[%clk 0:01:48.4]} 20... Ndb4 {[%clk 0:02:04.7]} 21. Nb3
{[%clk 0:01:10.6]} 21... Nxd3 {[%clk 0:01:50.8]} 22. Nxc5 {[%clk 0:01:09.1]}
22... Nxc5 {[%clk 0:01:36.8]} 23. Bxc5 {[%clk 0:01:10]} 23... Nd4 {[%clk
0:01:33.8]} 24. Bxd4 {[%clk 0:00:57.4]} 24... Qxd4 {[%clk 0:01:34.7]} 25. Ne3
{[%clk 0:00:53]} 25... f4 {[%clk 0:01:10.7]} 26. Qxc7 {[%clk 0:00:40.4]} 26...
fxe3 {[%clk 0:01:09.5]} 27. Rxe3 {[%clk 0:00:39.6]} 27... Rxe3 {[%clk 0:00:50]}
28. Qxb8+ {[%clk 0:00:38]} 28... Re8 {[%clk 0:00:50.6]} 29. Qxb7 {[%clk
0:00:35]} 29... Re2 {[%clk 0:00:50.5]} 30. Qd5+ {[%clk 0:00:34]} 30... Qxd5
{[%clk 0:00:48]} 31. Bxd5+ {[%clk 0:00:34.9]} 31... Kf8 {[%clk 0:00:48.3]} 32.
Bc4 {[%clk 0:00:34.4]} 32... Rxb2 {[%clk 0:00:46.9]} 33. Bxa6 {[%clk 0:00:35.3]}
33... Bf3 {[%clk 0:00:46.2]} 34. Bf1 {[%clk 0:00:34.3]} 34... Rb8 {[%clk
0:00:45.9]} 35. a6 {[%clk 0:00:33.7]} 35... Ra8 {[%clk 0:00:44.5]} 36. a7 {[%clk
0:00:32.1]} 36... Ke7 {[%clk 0:00:44.9]} 37. Ra3 {[%clk 0:00:29.4]} 37... Bd5
{[%clk 0:00:42.3]} 38. Bg2 {[%clk 0:00:27.9]} 38... Ke6 {[%clk 0:00:42.6]} 39.
Bxd5+ {[%clk 0:00:26.6]} 39... Kxd5 {[%clk 0:00:43.5]} 40. f4 {[%clk 0:00:25.4]}
40... Ke4 {[%clk 0:00:43.4]} 41. Kg2 {[%clk 0:00:25.2]} 41... g6 {[%clk
0:00:42]} 42. Ra4+ {[%clk 0:00:23.6]} 42... Ke3 {[%clk 0:00:29.5]} 43. Ra6
{[%clk 0:00:22.7]} 43... h5 {[%clk 0:00:27.1]} 44. Ra5 {[%clk 0:00:19.9]} 44...
h4 {[%clk 0:00:22.7]} 45. gxh4 {[%clk 0:00:17.1]} 45... Kxf4 {[%clk 0:00:23]}
46. Kf2 {[%clk 0:00:16.3]} 46... Ke4 {[%clk 0:00:21.3]} 47. Kg3 {[%clk
0:00:15.9]} 47... Ke3 {[%clk 0:00:20.3]} 48. Kg4 {[%clk 0:00:15.5]} 48... Ke4
{[%clk 0:00:20.7]} 49. Kg5 {[%clk 0:00:14.9]} 49... Kf3 {[%clk 0:00:20.8]} 50.
Kxg6 {[%clk 0:00:13.6]} 50... Kg3 {[%clk 0:00:21.3]} 51. h5 {[%clk 0:00:11.8]}
51... Rg8+ {[%clk 0:00:20.6]} 52. Kf7 {[%clk 0:00:10.4]} 52... Ra8 {[%clk
0:00:21.2]} 53. h6 {[%clk 0:00:09.8]} 53... Kxh3 {[%clk 0:00:21.4]} 54. h7
{[%clk 0:00:09.5]} 54... Kg4 {[%clk 0:00:21.6]} 55. Kg7 {[%clk 0:00:09.3]} 55...
Kf4 {[%clk 0:00:21.1]} 56. h8=Q {[%clk 0:00:08]} 56... Rxh8 {[%clk 0:00:21]} 57.
Kxh8 {[%clk 0:00:06.9]} 57... Ke4 {[%clk 0:00:21]} 58. a8=Q+ {[%clk 0:00:06.7]}
58... Kd4 {[%clk 0:00:21.3]} 59. Qd8+ {[%clk 0:00:05.9]} 59... Kc4 {[%clk
0:00:21.4]} 60. Qc7+ {[%clk 0:00:05]} 60... Kd4 {[%clk 0:00:20.8]} 61. Qd6+
{[%clk 0:00:04.1]} 61... Kc4 {[%clk 0:00:19.9]} 62. Rc5+ {[%clk 0:00:03.3]}
62... Kb4 {[%clk 0:00:19.1]} 63. Qb6+ {[%clk 0:00:04.2]} 63... Ka4 {[%clk
0:00:19.5]} 64. Ra5# {[%clk 0:00:04.3]} 1-0